Cogmind - Beta 16 @@@ ROGUE MODE // 2025.12.04 @ 11:37:46 Player: Vyckalino Result: Destroyed by G-47 Trooper with Particle Gun Performance ------------- Evolutions (3) 1500 Regions Visited (7) 1400 Robots Destroyed (22) 110 Value Destroyed (475) 475 Prototype IDs (1) 20 Alien Tech Used (0) 0 Bonus (500) 500 TOTAL SCORE: 4005 Bonus ------- Entered DSFs 500 Cogmind --------- Core Integrity 0/700 Matter 25/300 Energy 100/100 System Corruption 1% Temperature Cool (9) Movement Core (200) Ox3 Location -7/DSF Parts ------- > --- POWER (1) -------- (None) > --- PROPULSION (5) --- (None) > --- UTILITY (5) ------ Medium Storage Unit > --- WEAPON (2) ------- (None) > --- INVENTORY (10) --- Ion Engine Improved Deuterium Engine Compact Wheel Hover Unit Hover Unit Hover Unit Hover Unit Peak State ------------ > --- POWER ------------ Light Nuclear Core > --- PROPULSION ------- Airjet Airjet Airjet Airjet Cooled Airjet > --- UTILITY ---------- Improved Heat Sink Medium Storage Unit Improved Targeting Computer Improved Targeting Computer > --- WEAPON ----------- Assault Cannon Assault Cannon > --- INVENTORY -------- Ion Engine Improved Ion Engine Aluminum Leg Aluminum Leg Aluminum Leg Compact Wheel Hover Unit Assault Cannon Assault Cannon Assault Cannon [Rating: 35] Favorites ----------- Power Ion Engine Engine Ion Engine Power Core Light Nuclear Core Propulsion Aluminum Leg Treads Light Treads Leg Aluminum Leg Hover Unit Hover Unit Utility Medium Storage Unit Device Heat Sink Storage Medium Storage Unit Processor Improved Targeting Computer Protection Propulsion Shielding Weapon EM Pulse Gun Energy Gun EM Pulse Gun Energy Cannon Beam Cannon Ballistic Gun Assault Rifle Ballistic Cannon Assault Cannon Launcher Rocket Launcher Build | -11 -10 -10 -10 -9 -8 -7 -7 ------- Run | Yrd Mat Min Exi Min Mat Fac DSF Slots Evolved 6 | . . . . . 4 2 . Power . | . . . . . . . . Propulsion 3 | . . . . . 2 1 . Utility 3 | . . . . . 2 1 . Weapon . | . . . . . . . . Parts Attached 42 | 6 11 3 . 1 13 1 7 Power 7 | 1 4 . . 1 1 . . Engine 6 | 1 4 . . 1 . . . Core 1 | . . . . . 1 . . Reactor . | . . . . . . . . Propulsion 14 | 2 . 2 . . 5 1 4 Treads 2 | 2 . . . . . . . Leg 3 | . . 2 . . 1 . . Wheel . | . . . . . . . . Hover 9 | . . . . . 4 1 4 Flight . | . . . . . . . . Utility 7 | 1 2 1 . . 3 . . Device 2 | . . 1 . . 1 . . Storage 2 | 1 1 . . . . . . Processor 2 | . . . . . 2 . . Hackware . | . . . . . . . . Protection 1 | . 1 . . . . . . Artifact . | . . . . . . . . Weapon 14 | 2 5 . . . 4 . 3 Energy Gun 5 | . 4 . . . 1 . . Energy Cannon 1 | . 1 . . . . . . Ballistic Gun 2 | 2 . . . . . . . Ballistic Cannon 5 | . . . . . 2 . 3 Launcher 1 | . . . . . 1 . . Special Weapon . | . . . . . . . . Impact Weapon . | . . . . . . . . Slashing Weapon . | . . . . . . . . Piercing Weapon . | . . . . . . . . Special Melee Weapon . | . . . . . . . . Unidentified Prototypes 1 | . . . . . . 1 . Parts Lost 17 | . 4 . . 1 . . 12 Power 1 | . . . . . . . 1 Propulsion 5 | . . . . . . . 5 Utility 4 | . 1 . . . . . 3 Weapon 7 | . 3 . . 1 . . 3 Highest Loss Streak 12 | . 3 . . 1 . . 12 To Critical Strikes . | . . . . . . . . Average Backups 6 | 3 6 6 6 7 4 10 7 Power 1 | . . 2 2 2 1 2 1 Propulsion 1 | 1 1 2 2 2 1 4 4 Utility 1 | . 1 2 2 2 . . . Weapon 1 | 1 1 . . . 1 4 1 Tool/Special . | . . . . . . . . Unused Backups 11 | 2 4 . . . 3 . 2 Power 1 | . . . . . . . 1 Propulsion 3 | 2 . . . . . . 1 Utility 3 | . 2 . . . 1 . . Weapon 4 | . 2 . . . 2 . . Tool/Special . | . . . . . . . . Average Slot Usage (%) 86 | . 95 82 85 83 81 80 52 Engine 12 | . 14 14 14 14 4 . . Treads 10 | . 28 2 . . . . . Leg 15 | . . 25 28 28 21 . . Hover 1 | . . . . . 7 34 18 Device 7 | . . 11 14 14 9 7 4 Storage 13 | . 14 14 14 14 9 7 7 Processor 1 | . . . . . 16 15 6 Protection 3 | . 10 . . . . . . Energy Gun 12 | . 15 14 14 12 4 . . Ballistic Gun 4 | . 11 . . . . . . Peak Build Rating 35 | 6 8 6 6 8 21 24 35 Average Rating 7 | 4 6 5 6 7 16 22 16 On Entrance 9 | . 6 6 6 6 7 19 24 Avg Prop Armor Cover (%) . | . . . . . . . . Naked Turns . | . . . . . . . . Heaviest Build 26 | 12 20 18 18 20 22 21 26 Greatest Support 40 | 40 40 20 20 20 30 32 40 Greatest Overweight (x) 4 | . . . . . . . 4 Average Overweight (x) . | . . . . . . . . Largest Inventory Capacity 10 | 8 10 10 10 10 10 10 10 Average Capacity 9 | 6 9 10 10 10 10 10 10 Most Carried 10 | 5 10 9 6 9 10 10 10 Average Carried 6 | 3 6 6 6 7 4 10 7 Final Capacity 10 | 8 10 10 10 10 10 10 10 Final Carried 10 | 3 9 6 6 9 10 10 7 Class Distribution -------------------- 100% | Mutant Dominant Class ---------------- Mutant | -10/Materials Mutant | -10/Mines Mutant | -10/Exiles Mutant | -9/Mines Mutant | -8/Materials Mutant | -7/Factory Mutant | -7/DSF Resources | -11 -10 -10 -10 -9 -8 -7 -7 ----------- Run | Yrd Mat Min Exi Min Mat Fac DSF Matter Collected 624 | 224 282 . . 48 . . 70 Remotely . | . . . . . . . . Salvage Created 610 | . 506 . . 78 . . 26 Parts 45 | . 30 . . 9 . . 6 Haulers Intercepted . | . . . . . . . . Recyclers Shooed . | . . . . . . . . Parts Field Recycled . | . . . . . . . . Retrieved Matter . | . . . . . . . . Parts Self-Destructed . | . . . . . . . . Prevented . | . . . . . . . . Parts Restored . | . . . . . . . . Kills | -11 -10 -10 -10 -9 -8 -7 -7 ------- Run | Yrd Mat Min Exi Min Mat Fac DSF Combat Hostiles Destroyed 21 | . 14 . . 4 . . 3 Guns 17 | . 13 . . 4 . . . Cannons 3 | . . . . . . . 3 Classes Destroyed 4 | . 3 . . . . . 1 Watcher 1 | . 1 . . . . . . Swarmer 10 | . 6 . . 4 . . . Cutter 3 | . . . . . . . 3 Grunt 8 | . 8 . . . . . . Best Kill Streak 4 | . 4 . . 4 . . 3 Combat Bots Only 4 | . 4 . . 4 . . 3 Max Kills in Single Turn 2 | . 2 . . 1 . . 1 Gunslinging 1 | . 1 . . . . . . Exploded . | . . . . . . . . Melee . | . . . . . . . . Uniques/NPCs Destroyed . | . . . . . . . . Combat | -11 -10 -10 -10 -9 -8 -7 -7 -------- Run | Yrd Mat Min Exi Min Mat Fac DSF Hostile Shots Fired 223 | . 74 . . 54 . . 95 Missed 67 | . 17 . . 20 . . 30 Hits 156 | . 57 . . 34 . . 65 Melee 19 | . . . . . . . 19 Projectile 137 | . 57 . . 34 . . 46 AOE 5 | . . . . . . . 5 Critical Strikes 10 | . 2 . . . . . 8 Damage Taken 2670 | . 642 . . 277 . . 1751 Core 914 | . 122 . . 84 . . 708 Absorbed by Shields . | . . . . . . . . Redirected to Shielding 50 | . 50 . . . . . . Core Remaining (%) 72 | 100 . . . 17 100 . . Volleys Fired 74 | . 44 . . 9 . . 21 Largest 2 | . 2 . . 1 . . 2 Hottest 80 | . 80 . . 40 . . 74 Shots Fired 127 | . 85 . . 10 . . 32 Gun 95 | . 85 . . 10 . . . Cannon 32 | . . . . . . . 32 Launcher . | . . . . . . . . Special . | . . . . . . . . Kinetic 72 | . 40 . . . . . 32 Thermal . | . . . . . . . . Explosive . | . . . . . . . . Electromagnetic 55 | . 45 . . 10 . . . Robot Hit Streak 12 | . 12 . . 5 . . 6 Robot Miss Streak 4 | . 3 . . 2 . . 4 Penetration Max . | . . . . . . . . Secondary Targets 1 | . 1 . . . . . . Max Gunslinging Chain 1 | . 1 . . . . . . Shots Hit Robots 83 | . 61 . . 6 . . 16 Core Hits 34 | . 26 . . 4 . . 4 Critical Kills . | . . . . . . . . Critical Parts Destroyed . | . . . . . . . . Critical Strikes 1 | . . . . . . . 1 Blast 1 | . . . . . . . 1 Melee Attacks . | . . . . . . . . Impact . | . . . . . . . . Slashing . | . . . . . . . . Piercing . | . . . . . . . . Sneak Attacks . | . . . . . . . . Combat Hostiles . | . . . . . . . . Follow-up Attacks . | . . . . . . . . Damage Inflicted 1366 | . 880 . . 68 . . 418 Guns 865 | . 797 . . 68 . . . Cannons 417 | . . . . . . . 417 Explosions 83 | . 83 . . . . . . Melee . | . . . . . . . . Ramming 1 | . . . . . . . 1 Kinetic 750 | . 333 . . . . . 417 Thermal 83 | . 83 . . . . . . Explosive . | . . . . . . . . Electromagnetic 532 | . 464 . . 68 . . . Impact . | . . . . . . . . Slashing . | . . . . . . . . Piercing . | . . . . . . . . Highest Corruption 1 | . 1 1 1 1 . . 1 Average Corruption 1 | . 1 1 1 1 . . 1 Corruption Purged . | . . . . . . . . Corruption Blocked . | . . . . . . . . Effects 14 | . 8 . 2 4 . . . Message Errors 1 | . . . . 1 . . . Matter Fused 5 | . 4 . 1 . . . . Heat Flow Errors 3 | . . . 1 2 . . . Parts Fused 1 | . 1 . . . . . . Data Loss (minor) 2 | . 2 . . . . . . Misfires 1 | . . . . 1 . . . Alerts 1 | . 1 . . . . . . Overload Shots . | . . . . . . . . Overflow Damage 18 | . . . . . . . 18 Projectiles 18 | . . . . . . . 18 Explosions . | . . . . . . . . Melee . | . . . . . . . . Knockbacks 4 | . . . . . . . 4 Impact . | . . . . . . . . Kinetic 4 | . . . . . . . 4 Secondary . | . . . . . . . . Self-Inflicted Damage 14 | . 14 . . . . . . Shots 1 | . 1 . . . . . . Rammed 1 | . . . . . . . 1 Targets Rammed 1 | . . . . . . . 1 Kicked . | . . . . . . . . Crushed . | . . . . . . . . Highest Temperature 265 | . 175 . 265 123 . . . Average Temperature 83 | . 80 . 138 63 . . . Received Heat Transfer 423 | . 327 . . 6 . . 90 Siege Activations . | . . . . . . . . Martial Activations . | . . . . . . . . Shielding Activations . | . . . . . . . . Robots Disrupted . | . . . . . . . . Combat Hostiles . | . . . . . . . . Robots Corrupted 1 | . 1 . . . . . . Combat Hostiles 1 | . 1 . . . . . . Parts Fried 1 | . 1 . . . . . . Impact Corruptions . | . . . . . . . . Robots Melted . | . . . . . . . . Combat Hostiles . | . . . . . . . . Parts Melted . | . . . . . . . . Heat Transferred 150 | . 150 . . . . . . Parts Sabotaged . | . . . . . . . . Parts Stolen . | . . . . . . . . Parts Stripped . | . . . . . . . . Power Chain Reactions 1 | . 1 . . . . . . Alert | -11 -10 -10 -10 -9 -8 -7 -7 ------- Run | Yrd Mat Min Exi Min Mat Fac DSF Maximum Alert Level . | . . . . . . . . Low Security (%) 100 | 100 100 100 . 100 100 100 100 Level 1 . | . . . . . . . . Level 2 . | . . . . . . . . Level 3 . | . . . . . . . . Level 4 . | . . . . . . . . Level 5 . | . . . . . . . . High Security . | . . . . . . . . Max Security . | . . . . . . . . Peak Influence 135 | . 135 10 . 95 26 . 55 Initial 26 | . . 10 . . 26 . 3 Average 38 | . 59 4 . 30 4 . 13 Influence Increases 680 | . 380 . . 210 . 5 85 Destroy 0b10 Robot/C 420 | . 280 . . 80 . . 60 Destroy 0b10 Robot/NC 5 | . 5 . . . . . . Destroy Leader 72 | . 52 . . 10 . . 10 Successful Hack 28 | . 23 . . . . 5 . Disable Machine 15 | . . . . 15 . . . Destroy Structure 5 | . 5 . . . . . . Lose Combat Pursuer 135 | . 15 . . 105 . . 15 Influence Decreases 680 | . 352 28 . 141 69 . 90 Entered New Map 63 | . . 18 . . 43 . 2 Time Decay 479 | . 312 10 . 131 26 . . Lost Part 138 | . 40 . . 10 . . 88 Squads Dispatched 5 | . 2 . . . . . 3 Investigation 1 | . 1 . . . . . . Extermination . | . . . . . . . . Reinforcement 4 | . 1 . . . . . 3 Assault . | . . . . . . . . Garrison . | . . . . . . . . Intercept . | . . . . . . . . Searches Triggered . | . . . . . . . . Construction Impeded . | . . . . . . . . Haulers Reinforced . | . . . . . . . . Active Scanning Responses . | . . . . . . . . Cargo Convoy Interrupts . | . . . . . . . . Stealth | -11 -10 -10 -10 -9 -8 -7 -7 --------- Run | Yrd Mat Min Exi Min Mat Fac DSF Distress Signals 1 | . 1 . . . . . . Communications Jammed . | . . . . . . . . Distress Signals . | . . . . . . . . Times Spotted 49 | . 25 . . 12 1 . 11 Peak Tracking Total 7 | . 3 . . 7 1 . 6 Tactical Retreats 5 | . 1 . . 3 . . 1 Traps | -11 -10 -10 -10 -9 -8 -7 -7 ------- Run | Yrd Mat Min Exi Min Mat Fac DSF Traps Triggered 2 | . 2 . . . . . . Indirectly . | . . . . . . . . Trap Hack Attempts . | . . . . . . . . Triggered . | . . . . . . . . Disarmed 5 | . 5 . . . . . . Reprogrammed . | . . . . . . . . Reused . | . . . . . . . . Traps Extracted . | . . . . . . . . Installed . | . . . . . . . . Triggered . | . . . . . . . . Machines | -11 -10 -10 -10 -9 -8 -7 -7 ---------- Run | Yrd Mat Min Exi Min Mat Fac DSF Machines Disabled 1 | . . . . 1 . . . Max in Single Turn 1 | . . . . 1 . . . Machines Repaired . | . . . . . . . . Machines Dismantled . | . . . . . . . . Machines Sabotaged . | . . . . . . . . Overloaded Fab Kills . | . . . . . . . . Hacking | -11 -10 -10 -10 -9 -8 -7 -7 --------- Run | Yrd Mat Min Exi Min Mat Fac DSF Machines Accessed 10 | . 5 . 4 . . 1 . Terminals 6 | . 5 . . . . 1 . Fabricators . | . . . . . . . . Repair Stations . | . . . . . . . . Recycling Units . | . . . . . . . . Scanalyzers . | . . . . . . . . Garrison Access . | . . . . . . . . Total Hacks 70 | . 20 . 49 . . 1 . Successful 60 | . 10 . 49 . . 1 . Failed 10 | . 10 . . . . . . Catastrophic 1 | . 1 . . . . . . Database Lockouts . | . . . . . . . . Manual . | . . . . . . . . Terminals 21 | . 20 . . . . 1 . Fabricators . | . . . . . . . . Repair Stations . | . . . . . . . . Recycling Units . | . . . . . . . . Scanalyzers . | . . . . . . . . Garrison Access . | . . . . . . . . Terminal Hacks 60 | . 10 . 49 . . 1 . Record 49 | . . . 49 . . . . Open DSF 1 | . . . . . . 1 . Branch Access Points 1 | . 1 . . . . . . Emergency Access Points 1 | . 1 . . . . . . Alert Level 2 | . 2 . . . . . . Locate Traps 1 | . 1 . . . . . . Disarm Traps 2 | . 2 . . . . . . Surveillance Status 1 | . 1 . . . . . . Hauler Manifests 1 | . 1 . . . . . . Zone Layout 1 | . 1 . . . . . . Fabricator Hacks . | . . . . . . . . Repair Station Hacks . | . . . . . . . . Recycling Unit Hacks . | . . . . . . . . Scanalyzer . | . . . . . . . . Garrison Access Hacks . | . . . . . . . . Unauthorized Hacks . | . . . . . . . . Terminals . | . . . . . . . . Fabricators . | . . . . . . . . Repair Stations . | . . . . . . . . Recycling Units . | . . . . . . . . Scanalyzers . | . . . . . . . . Garrison Access . | . . . . . . . . Data Cores Recovered . | . . . . . . . . Used . | . . . . . . . . Hacking Detections 5 | . 5 . . . . . . Full Trace Events 2 | . 2 . . . . . . Feedback Events . | . . . . . . . . Feedback Blocked . | . . . . . . . . Robot Schematics Acquired . | . . . . . . . . Robots Built . | . . . . . . . . Authchips . | . . . . . . . . Time . | . . . . . . . . Total Robot Build Rating . | . . . . . . . . Part Schematics Acquired . | . . . . . . . . Parts Built . | . . . . . . . . Authchips . | . . . . . . . . Time . | . . . . . . . . Total Part Build Rating . | . . . . . . . . Part Studies Acquired . | . . . . . . . . Parts Repaired . | . . . . . . . . Time . | . . . . . . . . Parts Recycled . | . . . . . . . . Recycled Matter . | . . . . . . . . Retrieved Matter . | . . . . . . . . Retrieved Components . | . . . . . . . . Parts Scanalyzed . | . . . . . . . . Part Schematics Acquired . | . . . . . . . . Parts Damaged . | . . . . . . . . Bothacking | -11 -10 -10 -10 -9 -8 -7 -7 ------------ Run | Yrd Mat Min Exi Min Mat Fac DSF Used RIF Installer . | . . . . . . . . Robots Hacked . | . . . . . . . . Non-combat . | . . . . . . . . Combat . | . . . . . . . . Robot Hacks Applied . | . . . . . . . . Relay Couplers Released . | . . . . . . . . Fabnet Peak Effective % . | . . . . . . . . Robots Rewired . | . . . . . . . . Allies Hacked . | . . . . . . . . Hacks Repelled . | . . . . . . . . Allies | -11 -10 -10 -10 -9 -8 -7 -7 -------- Run | Yrd Mat Min Exi Min Mat Fac DSF Total Allies . | . . . . . . . . Largest Group . | . . . . . . . . Highest-Rated Group . | . . . . . . . . Highest-Rated Ally . | . . . . . . . . Total Orders . | . . . . . . . . Ally Attacks . | . . . . . . . . Total Damage . | . . . . . . . . Kills . | . . . . . . . . Allies Corrupted . | . . . . . . . . Allies Melted . | . . . . . . . . Intel | -11 -10 -10 -10 -9 -8 -7 -7 ------- Run | Yrd Mat Min Exi Min Mat Fac DSF Active Infowar (turns) . | . . . . . . . . Robot Analysis Total . | . . . . . . . . Derelict Logs Recovered 2 | . . . . 2 . . . Drone Launches . | . . . . . . . . Drone Recoveries . | . . . . . . . . Exploration | -11 -10 -10 -10 -9 -8 -7 -7 ------------- Run | Yrd Mat Min Exi Min Mat Fac DSF Turns Passed 2515 | 73 927 47 698 421 204 16 129 Spaces Moved 1738 | 44 476 36 582 332 178 34 56 Core 26 | 12 . . . . . . 14 Treads 508 | 32 476 . . . . . . Legs 1067 | . . 36 582 332 117 . . Wheels . | . . . . . . . . Hover 137 | . . . . . 61 34 42 Flight . | . . . . . . . . Fastest Speed 42 | 50 160 120 120 120 48 42 42 Average Speed 126 | 130 160 120 120 120 95 43 95 Slowest Speed 250 | 160 160 120 120 120 120 48 250 Overloaded Moves . | . . . . . . . . Propulsion Burnouts . | . . . . . . . . Robots Hopped . | . . . . . . . . Potential Cave-ins . | . . . . . . . . Cave-ins Triggered . | . . . . . . . . Exploration Rate (%) 45 | 5 79 16 92 66 18 . 39 Regions Visited 7 Branch Regions 3 Pre-discovered Areas 3 | . . . 1 2 . . . Known Exits Taken 2 | . 1 . . . . 1 . Unknown Exits Taken 5 | 1 . 1 1 1 1 . . Scrap Searched 3 | . . . . 3 . . . Spaces Dug . | . . . . . . . . Terrain Destroyed 4 | . 4 . . . . . . Melee . | . . . . . . . . Projectile . | . . . . . . . . AOE 4 | . 4 . . . . . . Terrain Rammed . | . . . . . . . . Walls Destroyed . | . . . . . . . . Machines Disabled . | . . . . . . . . Actions | -11 -10 -10 -10 -9 -8 -7 -7 --------- Run | Yrd Mat Min Exi Min Mat Fac DSF Total 1933 | 59 559 39 581 345 213 34 103 Wait . | . . . . . . . . Move 1731 | 43 475 35 581 331 177 33 56 Hop . | . . . . . . . . Pick Up 51 | 8 19 . . 3 14 . 7 Fast Attach 4 | 3 . . . . . 1 . Attach 23 | 3 5 1 . . 8 . 6 Detach 2 | . . . . . 2 . . Swap 19 | . 6 2 . 1 5 . 5 Drop 28 | 2 10 1 . 1 7 . 7 Fire 74 | . 44 . . 9 . . 21 Melee . | . . . . . . . . Ram 1 | . . . . . . . 1 Kick . | . . . . . . . . Crush . | . . . . . . . . Escape Stasis . | . . . . . . . . Rewire . | . . . . . . . . Trap . | . . . . . . . . Miscellaneous . | . . . . . . . . Route ------- -11/Scrapyard -10/Materials (discovered 5 exits: [*Mat x3] / *Min x2) -10/Mines -10/Exiles (discovered 2 exits: *Min x2) -9/Mines (discovered 2 exits: [*Mat x2]) -8/Materials -7/Factory -7/DSF History --------- Turn | Location | Event 9 | -11/Scrapyard | Discovered new exit (range 14) 74 | -11/Scrapyard | Entered Materials 225 | -10/Materials | Discovered new exit (range 4) 309 | -10/Materials | Build established: Mutant 565 | -10/Materials | Identified exit to Mines 677 | -10/Materials | Discovered new exit (range 15) 774 | -10/Materials | Discovered new exit (range 15) 1000 | -10/Materials | Lost 3 parts (1u2w) 1001 | -10/Materials | Entered Mines 1041 | -10/Mines | Deemed a non-threat by the Exiles lab entrance 1042 | -10/Mines | Discovered new exit (range 5) 1048 | -10/Mines | Entered Exiles 1066 | -10/Exiles | Discovered new exit (range 15) 1095 | -10/Exiles | Met 8R-AWN 1116 | -10/Exiles | Met EX-HEX 1171 | -10/Exiles | Met EX-DEC 1199 | -10/Exiles | Visited The Gauntlet 1386 | -10/Exiles | Discovered new exit (range 14) 1472 | -10/Exiles | Learned location of Zion (-7) 1518 | -10/Exiles | Met EX-BIN 1746 | -10/Exiles | Entered Mines 1747 | -9/Mines | Learned location of Storage (-9) 1799 | -9/Mines | Learned Materials terminal intel 1848 | -9/Mines | Received a Rocket Launcher from a helpful Derelict 1899 | -9/Mines | Core integrity fell below 50% 1976 | -9/Mines | Found a Scrap Suit stashed away for nefarious purposes 1982 | -9/Mines | Found Scrap Suit 2006 | -9/Mines | Discovered new exit (range 11) 2063 | -9/Mines | Learned location of Recycling (-9) 2097 | -9/Mines | Discovered new exit (range 8) 2164 | -9/Mines | Core integrity fell below 20% 2167 | -9/Mines | Entered Materials 2167 | -8/Materials | Evolved 4 slots: Propulsion x2, Utility x2 2168 | -8/Materials | Loaded intel: 11 terminal locations 2361 | -8/Materials | Discovered new exit (range 10) 2371 | -8/Materials | Entered Factory 2371 | -7/Factory | Evolved 2 slots: Propulsion x1, Utility x1 2387 | -7/Factory | Identified exit to DSF 2387 | -7/Factory | Entered DSF 2402 | -7/DSF | Additional patrols routed to DSF 2490 | -7/DSF | Core integrity fell below 50% 2510 | -7/DSF | Core integrity fell below 20% 2516 | -7/DSF | Destroyed by G-47 Trooper with Particle Gun Last Messages --------------- 02482_ Penetrated by Slug. 02483_ Knocked back. 02484_ Acquired 22 matter. 02486_ Assault Cannon destroyed. 02493_ Knocked back. 02495_ Penetrated by Slug. 02497_ Acquired Assault Cannon. 02498_ Penetrated by Slug. 02501_ Assault Cannon destroyed. 02502_ Acquired 6 matter. 02503_ C-30 ARC bursts open, deploying its payload. 02503_ G-50 Soldier unfolds itself. 02503_ G-47 Trooper unfolds itself. 02506_ Slug penetrates Earth. 02506_ Acquired Assault Cannon. 02510_ Acquired 4 matter. 02513_ Assault Cannon destroyed. 02515_ Slug penetrates Wall. 02516_ Slammed into C-17 Slicer. Map ----- +----------------------------------------------------+ | ??????????????????????????????????? | | ??????????????????????????????????? | | ??????????????????????????????????? | | ???????????????????????##?????????? | | ??????????????????????#""?????????? | | ??????????????????????#"#?????????? | | ?????????????????????##"####??????? | | ?????????????#???###?#"""""#??????? | | ????????? # # ##"""""#??????? | | ???????? ""##"#???? | | ???????? ^ """""#???? | | ???????????###===#==##x ""###????? | | ?????????????????#???## ###??????? | | ????????????????????### ##???????? | | ????????????????????#== =#???????? | | ????????????????????#== =#???????? | | ?????###????????????### ##???????? | | ?????#!! ???????????# #???????? | | ?????#!! ???????????# #???????? | | ??????!! ??????????# = #???????? | | ???????# ??########## ###??????? | | ??????## #?#!!!# ##=] *##?????? | | ?#!!!## ## !! ;#* ;####??? | | = %! g ! # #??? | | % % %g !c]% #???? | | % h H = = @!####???? | | ??????# ^%%##!g!; *%! #??????? | | ?????????????# ! # % ##=!*!#??????? | | ?????????????##"############??????? | | ??????????????###?????????????????? | | ??????????????????????????????????? | | ??????????????????????????????????? | | ??????????????????????????????????? | | ??????????????????????????????????? | | ??????????????????????????????????? | | ??????????????????????????????????? | | ??????????????????????????????????? | | ??????????????????????????????????? | | ??????????????????????????????????? | | ??????????????????????????????????? | | ??????????????????????????????????? | | ??????????????????????????????????? | | ??????????????????????????????????? | | ??????????????????????????????????? | | ??????????????????????????????????? | | ??????????????????????????????????? | | ??????????????????????????????????? | | ??????????????????????????????????? | | ??????????????????????????????????? | | ??????????????????????????????????? | +----------------------------------------------------+ Best States ------------- Heat Dissipation 48 Energy Generation 14 Energy Capacity 265 Matter Stores 300 Matter Capacity 300 Sight Range 16 Terrain Scan Density 10 Propulsion Shielding 33 Evasion (%) 56 Targeting Accuracy 12 Recoil Reduction 2 Item Schematics ----------------- None Robot Schematics ------------------ None Fabricated ------------ Nothing Repaired ---------- Nothing Studied --------- None Alien Tech Used ----------------- None Achievements -------------- Librarian Challenges ------------ None Game ------ Seed TimingMobileShifter Manual? 0 Play Time 00:33:53 Cumulative 5.1 hours Start 2025.12.04 @ 11:05:57 End 2025.12.04 @ 11:37:46 Sessions 1 Manual Loads 0 Difficulty Rogue Special Mode None Game No. 11 Rogue 11 Adventurer 0 Explorer 0 Win Type - Total 0 Types 0/0/0/0/0/0/0/0/0/0 Lore% 8 Gallery% 7 Achievement% 10 Wizard Run 0 Options --------- Layout 1 ASCII 0 Keyboard 0 Movement Mouse Keybinds 0 Fullscreen 2 Font 24/Proggy Map View 50x35 Zoom Use 0% Tactical HUD 1 Map Filters NONE Filters NONE Steam 1 RUN: df36c891-a0f1-4c0a-8f05-edf611d89cf8